fUST/lending_fUST_20251010
["ID","MTS","AMOUNT","RATE_DAILY","PERIOD"]
[390349111,1760028651871,-500.0,0.0001726,2]
[390349113,1760028651879,-500.0,0.0001726,2]
[390349115,1760028651889,-500.0,0.0001726,2]
[390349117,1760028651899,-500.0,0.0001726,2]
[390349119,1760028651913,-500.0,0.0001726,2]
[390349121,1760028651922,-1047.01,0.0001726,2]
[390349123,1760028651936,-593.27,0.0001726,2]
[390349125,1760028651945,-591.64,0.0001726,2]
[390349127,1760028651955,-500.0,0.0001726,2]
[390349129,1760028651964,-500.0,0.0001726,2]
[390349131,1760028651974,-671.16,0.0001726,2]
[390349133,1760028651985,-500.0,0.0001726,2]
[390349135,1760028651996,-500.0,0.0001726,2]
[390349137,1760028652005,-500.0,0.0001726,2]
[390349139,1760028652015,-763.73,0.0001726,2]
[390349141,1760028652024,-500.0,0.0001726,2]
[390349143,1760028652033,-260.72,0.0001726,2]
[390349144,1760028652042,-500.0,0.0001726,2]
[390349146,1760028652051,-500.0,0.0001726,2]
[390349148,1760028652060,-500.0,0.0001726,2]
[390349150,1760028652070,-500.0,0.0001726,2]
[390349152,1760028652079,-542.03,0.0001726,2]
[390349154,1760028652088,-500.0,0.0001726,2]
[390349156,1760028652097,-500.0,0.0001726,2]
[390349158,1760028652106,-8265.94,0.0001726,2]
[390349160,1760028652116,-525.95,0.0001726,2]
[390349163,1760028652126,-500.0,0.0001726,2]
[390349164,1760028652135,-1448.2,0.0001726,2]
[390349166,1760028652144,-520.86,0.0001726,2]
[390349168,1760028652154,-381.07,0.0001726,2]
[390349170,1760028652163,-564.52,0.0001726,2]
[390349172,1760028652172,-500.0,0.0001726,2]
[390349174,1760028652181,-500.0,0.0001726,2]
[390349176,1760028652190,-1432.45,0.0001726,2]
[390349178,1760028652199,-2515.83,0.0001726,2]
[390349180,1760028652208,-1961.31,0.0001726,2]
[390349181,1760028652217,-2688.88,0.0001726,2]
[390349182,1760028652226,-500.0,0.0001726,2]
[390349183,1760028652234,-2516.76,0.0001726,2]
[390349184,1760028652243,-500.0,0.0001726,2]
[390349185,1760028652253,-500.0,0.0001726,2]
[390349186,1760028652262,-500.0,0.0001726,2]
[390349187,1760028652270,-500.0,0.0001726,2]
[390349188,1760028652279,-630.04,0.0001726,2]
[390349189,1760028652289,-500.0,0.0001726,2]
[390349190,1760028652298,-500.0,0.0001726,2]
[390349191,1760028652306,-306.69,0.0001726,2]
[390349192,1760028652315,-711.45,0.0001726,2]
[390349193,1760028652323,-1341.73,0.0001726,2]
[390349194,1760028652332,-500.0,0.0001726,2]
[390349195,1760028652341,-500.0,0.0001726,2]
[390349196,1760028652349,-500.0,0.0001726,2]
[390349197,1760028652358,-731.17,0.0001726,2]
[390349198,1760028652367,-971.11,0.0001726,2]
[390349200,1760028652376,-500.0,0.0001726,2]
[390349202,1760028652386,-500.0,0.0001726,2]
[390349204,1760028652395,-539.88,0.0001726,2]
[390349206,1760028652406,-895.22,0.0001726,2]
[390349208,1760028652416,-301.4077973,0.0001726,2]
[390349210,1760028652425,-863.68,0.0001726,2]
[390349212,1760028652434,-4614.25,0.0001726,2]
[390349214,1760028652443,-659.49003932,0.0001726,2]
[390349234,1760028652619,-961.09996068,0.0001726,2]
[390349236,1760028652631,-500.0,0.0001726,2]
[390349238,1760028652641,-500.0,0.0001726,2]
[390349240,1760028652651,-525.09,0.0001726,2]
[390349242,1760028652661,-1040.5,0.0001726,2]
[390349244,1760028652670,-500.0,0.0001726,2]
[390349246,1760028652680,-2791.48,0.0001726,2]
[390349248,1760028652689,-1073.58,0.0001726,2]
[390349250,1760028652698,-500.0,0.0001726,2]
[390349252,1760028652707,-1011.9,0.0001726,2]
[390349254,1760028652717,-1229.96,0.0001726,2]
[390349256,1760028652726,-500.0,0.0001726,2]
[390349258,1760028652735,-500.0,0.0001726,2]
[390349260,1760028652744,-871.55,0.0001726,2]
[390349262,1760028652753,-500.0,0.0001726,2]
[390349264,1760028652763,-500.0,0.0001726,2]
[390349266,1760028652772,-731.76,0.0001726,2]
[390349268,1760028652782,-422.06,0.0001726,2]
[390349270,1760028652791,-2371.21,0.0001726,2]
[390349272,1760028652801,-778.06,0.0001726,2]
[390349274,1760028652810,-555.72,0.0001726,2]
[390349276,1760028652820,-608.27,0.0001726,2]
[390349278,1760028652830,-500.0,0.0001726,2]
[390349280,1760028652840,-500.0,0.0001726,2]
[390349282,1760028652850,-500.0,0.0001726,2]
[390349285,1760028652860,-618.94,0.0001726,2]
[390349287,1760028652869,-500.0,0.0001726,2]
[390349289,1760028652878,-845.9543818,0.0001726,2]
[390349291,1760028652890,-42.9156182,0.0001726,2]
[390349293,1760028652899,-500.0,0.0001726,2]
[390349295,1760028652911,-500.0,0.0001726,2]
[390349297,1760028652922,-500.0,0.0001726,2]
[390349299,1760028652931,-1088.68,0.0001726,2]
[390349301,1760028652940,-2155.61,0.0001726,2]
[390349303,1760028652950,-921.05,0.0001726,2]
[390349305,1760028652961,-783.99,0.0001726,2]
[390349307,1760028652973,-500.0,0.0001726,2]
[390349309,1760028652983,-816.23,0.0001726,2]
[390349311,1760028652995,-1178.86,0.0001726,2]
[390349313,1760028653005,-500.0,0.0001726,2]
[390349315,1760028653015,-500.0,0.0001726,2]
[390349317,1760028653025,-1690.05,0.0001726,2]
[390349319,1760028653034,-1351.94,0.0001726,2]
[390349321,1760028653044,-628.66,0.0001726,2]
[390349323,1760028653055,-2815.98,0.0001726,2]
[390349325,1760028653064,-500.0,0.0001726,2]
[390349327,1760028653074,-411.66015009,0.0001726,2]
[390349329,1760028653083,-500.0,0.0001726,2]
[390349332,1760028653093,-1219.87,0.0001726,2]
[390349334,1760028653103,-346.99069007,0.0001726,2]
[390349336,1760028653112,-500.0,0.0001726,2]
[390349337,1760028653122,-500.0,0.0001726,2]
[390349340,1760028653132,-280.86079554,0.0001726,2]
[390349342,1760028653142,-2497.5543966,0.0001726,2]
[390349344,1760028653158,-295.0756034,0.0001726,2]
[390349346,1760028653169,-500.0,0.0001726,2]
[390349348,1760028653179,-891.59,0.0001726,2]
[390349350,1760028653189,-500.0,0.0001726,2]
[390349352,1760028653199,-1034.56,0.0001726,2]
[390349354,1760028653209,-500.0,0.0001726,2]
[390349356,1760028653219,-500.0,0.0001726,2]
[390349358,1760028653229,-500.0,0.0001726,2]
[390349360,1760028653239,-500.0,0.0001726,2]
[390349362,1760028653249,-583.61,0.0001726,2]
[390349365,1760028653259,-500.0,0.0001726,2]
[390349367,1760028653269,-500.0,0.0001726,2]
[390349369,1760028653279,-4008.99,0.0001726,2]
[390349371,1760028653288,-500.0,0.0001726,2]
[390349373,1760028653299,-300.555561,0.0001726,2]
[390349379,1760028653354,-2937.174439,0.0001726,2]
[390349381,1760028653364,-500.0,0.0001726,2]
[390349383,1760028653374,-500.0,0.0001726,2]
[390349386,1760028653384,-62.825561,0.0001726,2]
[390349713,1760028656703,5000.0,0.000164,2]
[390352971,1760028691358,-500.0,0.00016438,2]
[390352975,1760028691380,-312.596416,0.00016438,2]
[390352978,1760028691402,-500.0,0.00016438,2]
[390352981,1760028691424,-500.0,0.00016712,2]
[390353349,1760028695148,1193.7,0.00016438,2]
[390353372,1760028695558,1193.7,0.00016712,2]
[390353376,1760028695589,151.0,0.00016712,2]
[390353544,1760028697233,151.0,0.00016712,2]
[390353619,1760028697964,500.0,0.00016438,2]
[390354018,1760028713299,1142.61,0.00016438,2]
[390354019,1760028713480,1142.61,0.00016712,2]
[390354020,1760028717887,-548.76,0.00016438,2]
[390354021,1760028721976,548.76,0.00016712,2]
[390354022,1760028723126,236.6476265,0.00016437,2]
[390354023,1760028727882,2097.3,0.00016438,2]
[390354024,1760028729454,2097.3,0.00016712,2]
[390354025,1760028736473,500.0,0.00016438,2]
[390354026,1760028736873,17695.58035553,0.00016138,2]
[390354030,1760028763837,-100000.0,0.00016138,2]
[390354031,1760028789384,1172.665185,0.00013699,2]
[390354032,1760028791696,-300.0,0.00016137,2]
[390354033,1760028791719,-18704.68278316,0.00016138,2]
[390354034,1760028791741,-995.31721684,0.00016438,2]
[390354036,1760028800786,3000.0,0.00024,30]
[390354037,1760028828202,1553.21480766,0.00028,120]
[390354038,1760028835304,-2662.2547692,0.00016407,2]
[390354039,1760028835329,-1389.42278316,0.00016438,2]
[390354040,1760028835353,-6888.28,0.00016438,2]
[390354041,1760028835375,-160.58817146,0.00016438,2]
[390354042,1760028835397,-500.0,0.00016438,2]
[390354043,1760028835419,-500.0,0.00016438,2]
[390354044,1760028835440,-500.0,0.00016438,2]
[390354045,1760028835461,-1206.84,0.00016438,2]
[390354046,1760028835483,-592.87,0.00016438,2]
[390354047,1760028835504,-500.0,0.00016438,2]
[390354048,1760028835525,-500.0,0.00016438,2]
[390354049,1760028835548,-500.0,0.00016438,2]
[390354050,1760028835570,-500.0,0.00016438,2]
[390354051,1760028836882,500.0,0.00016438,2]
[390354052,1760028841400,172.68,0.00016438,2]
[390354053,1760028844187,855.0,0.00016438,2]
[390354054,1760028851225,2223.86,0.00016438,2]
[390354055,1760028853549,500.0,0.00016438,2]
[390354056,1760028855257,13435.6974249,0.00016331,2]
[390354057,1760028860843,500.0,0.00016438,2]
[390354058,1760028861326,500.0,0.00016438,2]
[390354059,1760028863788,1024.97,0.00016438,2]
[390354060,1760028865594,500.0,0.00016438,2]
[390354061,1760028869509,1421.34,0.00016438,2]
[390354062,1760028876831,236.58362174,0.00016438,2]
[390354063,1760028881404,982.26,0.00016438,2]
[390354064,1760028883409,500.0,0.00016438,2]
[390354065,1760028885684,1976.01,0.00016438,2]
[390354066,1760028889338,500.0,0.00016438,2]
[390354067,1760028894898,4071.2,0.00016438,2]
[390354068,1760028895128,500.0,0.00016438,2]
[390354069,1760028896343,515.78,0.00016438,2]
[390354070,1760028897880,500.0,0.00016438,2]
[390354071,1760028898239,1893.67,0.00016438,2]
[390354072,1760028900086,898.89,0.00016438,2]
[390354073,1760028903083,645.66,0.00016438,2]
[390354074,1760028903795,500.0,0.00016438,2]
[390354075,1760028905144,867.09,0.00016438,2]
[390354076,1760028906782,37379.05322954,0.00016038,2]
[390354077,1760029002150,-300.0,0.00016037,2]
[390354078,1760029002175,-19700.0,0.00016038,2]
[390354079,1760029436281,666.0,0.00015341,2]
[390354080,1760029459501,355.0,0.00028767,120]
[390354082,1760029644584,-200.0,0.00016438,10]
[390354083,1760029644609,-200.0,0.00016438,10]
[390354084,1760029644633,-200.0,0.00016438,10]
[390354085,1760029644657,-200.0,0.00016438,10]
[390354086,1760029644681,-200.0,0.00016438,10]
[390354087,1760029644706,-200.0,0.00016438,10]
[390354090,1760029680790,455.49,0.00014535,2]
[390354091,1760029681112,455.49,0.00014535,2]
[390354092,1760029708386,200.0,0.00016438,10]
[390354093,1760029708761,200.0,0.00016438,10]
[390354094,1760029709083,200.0,0.00016438,10]
[390354095,1760029709624,200.0,0.00016438,10]
[390354096,1760029709895,200.0,0.00016438,10]
[390354097,1760029710182,200.0,0.00016438,10]
[390354098,1760029710526,200.0,0.00016438,10]
[390354099,1760029710775,209.074675,0.00016438,10]
[390354100,1760029817501,313.78887516,0.00024,30]
[390354171,1760029832750,-370.59086176,0.00016037,2]
[390354173,1760029832760,-300.0,0.00016037,2]
[390354175,1760029832769,-300.0,0.00016037,2]
[390354177,1760029832779,-1200.0,0.00016037,2]
[390354179,1760029832788,-33.78878199,0.00016038,2]
[390354182,1760029832798,-1206.0,0.00016038,2]
[390354184,1760029832810,-35370.57384568,0.00016038,2]
[390354186,1760029832819,-179.81782093,0.000161,2]
[390354188,1760029832828,-179.81782093,0.00016194,2]
[390354189,1760029832837,-3019.238756,0.00016294,2]
[390354191,1760029832847,-389.96,0.00016428,3]
[390354193,1760029832856,-1000.0,0.00016428,2]
[390354195,1760029832865,-281.17350901,0.00016428,2]
[390354197,1760029832874,-1000.0,0.00016428,2]
[390354200,1760029832884,-1000.0,0.00016428,2]
[390354202,1760029832894,-50000.0,0.00016428,2]
[390354203,1760029832903,-500.0,0.00016438,2]
[390354205,1760029832914,-503.03,0.00016438,2]
[390354208,1760029832924,-500.0,0.00016438,2]
[390354210,1760029832933,-500.0,0.00016438,2]
[390354212,1760029832943,-500.0,0.00016438,2]
[390354215,1760029832952,-500.0,0.00016438,2]
[390354217,1760029832962,-522.22483522,0.00016438,2]
[390354219,1760029832975,-500.0,0.00016438,2]
[390354221,1760029832996,-354.89,0.00016438,2]
[390354223,1760029833011,-500.0,0.00016438,2]
[390354225,1760029833023,-500.0,0.00016438,2]
[390354227,1760029833034,-500.0,0.00016438,2]
[390354229,1760029833044,-259.17,0.00016438,2]
[390354231,1760029833054,-581.36,0.00016438,2]
[390354233,1760029833064,-500.0,0.00016438,2]
[390354235,1760029833073,-500.0,0.00016438,2]
[390354237,1760029833083,-500.0,0.00016438,2]
[390354239,1760029833093,-500.0,0.00016438,2]
[390354241,1760029833103,-500.0,0.00016438,2]
[390354243,1760029833112,-500.0,0.00016438,2]
[390354245,1760029833122,-500.0,0.00016438,2]
[390354246,1760029833131,-531.77,0.00016438,2]
[390354249,1760029833141,-500.0,0.00016438,2]
[390354251,1760029833151,-453.0,0.00016438,2]
[390354253,1760029833161,-669.82,0.00016438,2]
[390354255,1760029833171,-500.0,0.00016438,2]
[390354257,1760029833181,-500.0,0.00016438,2]
[390354259,1760029833191,-500.0,0.00016438,2]
[390354261,1760029833201,-500.0,0.00016438,2]
[390354263,1760029833211,-500.0,0.00016438,2]
[390354265,1760029833221,-406.32779383,0.00016438,2]
[390354267,1760029833235,-500.0,0.00016438,2]
[390354269,1760029833246,-514.82,0.00016438,2]
[390354271,1760029833256,-356.89708452,0.00016438,2]
[390354273,1760029833266,-500.0,0.00016438,2]
[390354275,1760029833276,-500.0,0.00016438,2]
[390354277,1760029833286,-500.0,0.00016438,2]
[390354279,1760029833295,-500.0,0.00016438,2]
[390354281,1760029833306,-500.0,0.00016438,2]
[390354283,1760029833316,-500.0,0.00016438,2]
[390354285,1760029833325,-500.0,0.00016438,2]
[390354287,1760029833335,-1544.96,0.00016438,2]
[390354289,1760029833344,-500.0,0.00016438,2]
[390354291,1760029833353,-500.0,0.00016438,2]
[390354293,1760029833363,-500.0,0.00016438,2]
[390354295,1760029833372,-501.32,0.00016438,2]
[390354297,1760029833381,-500.0,0.00016438,2]
[390354299,1760029833391,-500.0,0.00016438,2]
[390354301,1760029833400,-500.0,0.00016438,2]
[390354303,1760029833411,-571.43,0.00016438,2]
[390354305,1760029833420,-500.0,0.00016438,2]
[390354307,1760029833429,-500.0,0.00016438,2]
[390354309,1760029833439,-500.0,0.00016438,2]
[390354311,1760029833448,-500.0,0.00016438,2]
[390354313,1760029833457,-500.0,0.00016438,2]
[390354315,1760029833468,-500.0,0.00016438,2]
[390354317,1760029833477,-500.0,0.00016438,2]
[390354319,1760029833486,-500.0,0.00016438,2]
[390354321,1760029833496,-500.0,0.00016438,2]
[390354323,1760029833505,-500.0,0.00016438,2]
[390354325,1760029833514,-1184.79,0.00016438,2]
[390354327,1760029833525,-500.0,0.00016438,2]
[390354329,1760029833534,-500.0,0.00016438,2]
[390354331,1760029833543,-588.92,0.00016438,2]
[390354333,1760029833553,-500.0,0.00016438,2]
[390354335,1760029833562,-500.0,0.00016438,2]
[390354337,1760029833571,-500.0,0.00016438,2]
[390354339,1760029833581,-500.0,0.00016438,2]
[390354341,1760029833590,-500.0,0.00016438,2]
[390354343,1760029833599,-500.0,0.00016438,2]
[390354345,1760029833608,-528.89,0.00016438,2]
[390354347,1760029833618,-2074.5,0.00016438,2]
[390354349,1760029833627,-500.0,0.00016438,2]
[390354351,1760029833636,-500.0,0.00016438,2]
[390354353,1760029833646,-1000.0,0.00016438,2]
[390354355,1760029833655,-500.0,0.00016438,2]
[390354357,1760029833666,-500.0,0.00016438,2]
[390354359,1760029833675,-776.93,0.00016438,2]
[390354361,1760029833685,-657.76,0.00016438,2]
[390354363,1760029833694,-500.0,0.00016438,2]
[390354365,1760029833704,-767.91,0.00016438,2]
[390354367,1760029833713,-500.0,0.00016438,2]
[390354369,1760029833722,-484.86,0.00016438,2]
[390354371,1760029833731,-500.0,0.00016438,2]
[390354373,1760029833740,-500.0,0.00016438,2]
[390354375,1760029833750,-500.0,0.00016438,2]
[390354377,1760029833760,-500.0,0.00016438,2]
[390354379,1760029833769,-500.0,0.00016438,2]
[390354381,1760029833779,-1126.62,0.00016438,2]
[390354383,1760029833791,-500.0,0.00016438,2]
[390354386,1760029833801,-500.0,0.00016438,2]
[390354388,1760029833810,-500.0,0.00016438,2]
[390354389,1760029833821,-325.03236458,0.00016438,2]
[390354392,1760029833831,-669.66,0.00016438,2]
[390354394,1760029833841,-500.0,0.00016438,2]
[390354396,1760029833851,-4492.61,0.00016438,2]
[390354398,1760029833861,-862.14,0.00016438,2]
[390354399,1760029833871,-500.0,0.00016438,2]
[390354401,1760029833880,-500.0,0.00016438,2]
[390354403,1760029833890,-163.77681886,0.00016438,2]
[390354405,1760029833899,-500.0,0.00016438,2]
[390354407,1760029833910,-500.0,0.00016438,2]
[390354408,1760029833919,-500.0,0.00016438,2]
[390354410,1760029833929,-1200.87,0.00016438,2]
[390354411,1760029833938,-932.64,0.00016438,2]
[390354413,1760029833948,-500.0,0.00016438,2]
[390354415,1760029833957,-500.0,0.00016438,2]
[390354417,1760029833967,-182.53588176,0.00016438,2]
[390354419,1760029833976,-387.53349114,0.00016438,2]
[390354421,1760029833985,-817.4,0.00016438,2]
[390354423,1760029833994,-500.0,0.00016438,2]
[390354425,1760029834004,-500.0,0.00016438,2]
[390354427,1760029834013,-519.99,0.00016438,2]
[390354428,1760029834024,-500.0,0.00016438,2]
[390354429,1760029834033,-500.0,0.00016438,2]
[390354430,1760029834042,-500.0,0.00016438,2]
[390354431,1760029834052,-943.9,0.00016438,2]
[390354432,1760029834061,-500.0,0.00016438,2]
[390354433,1760029834071,-500.0,0.00016438,2]
[390354434,1760029834080,-500.0,0.00016438,2]
[390354435,1760029834090,-500.0,0.00016438,2]
[390354436,1760029834099,-500.0,0.00016438,2]
[390354438,1760029834109,-500.0,0.00016438,2]
[390354440,1760029834118,-500.0,0.00016438,2]
[390354442,1760029834127,-947.93,0.00016438,2]
[390354444,1760029834136,-501.80856735,0.00016438,2]
[390354446,1760029834145,-500.0,0.00016438,2]
[390354448,1760029834155,-500.0,0.00016438,2]
[390354450,1760029834165,-2224.87,0.00016438,2]
[390354452,1760029834175,-500.0,0.00016438,2]
[390354454,1760029834185,-627.78,0.00016438,2]
[390354456,1760029834194,-500.0,0.00016438,2]
[390354458,1760029834203,-500.0,0.00016438,2]
[390354460,1760029834212,-1255.81,0.00016438,2]
[390354462,1760029834222,-500.0,0.00016438,2]
[390354464,1760029834234,-500.0,0.00016438,2]
[390354466,1760029834244,-500.0,0.00016438,2]
[390354468,1760029834254,-500.0,0.00016438,2]
[390354470,1760029834263,-500.0,0.00016438,2]
[390354472,1760029834273,-500.0,0.00016438,2]
[390354474,1760029834283,-500.0,0.00016438,2]
[390354476,1760029834292,-1961.54,0.00016438,2]
[390354478,1760029834301,-500.0,0.00016438,2]
[390354480,1760029834313,-500.0,0.00016438,2]
[390354482,1760029834322,-500.0,0.00016438,2]
[390354484,1760029834332,-500.0,0.00016438,2]
[390354486,1760029834341,-500.0,0.00016438,2]
[390354488,1760029834350,-510.37,0.00016438,2]
[390354491,1760029834360,-500.0,0.00016438,2]
[390354492,1760029834369,-500.0,0.00016438,2]
[390354495,1760029834379,-500.0,0.00016438,2]
[390354497,1760029834388,-589.0,0.00016438,2]
[390354499,1760029834397,-922.2,0.00016438,2]
[390354501,1760029834407,-500.0,0.00016438,2]
[390354503,1760029834417,-1094.23,0.00016438,2]
[390354505,1760029834426,-500.0,0.00016438,2]
[390354507,1760029834435,-500.0,0.00016438,2]
[390354509,1760029834444,-1080.53,0.00016438,2]
[390354511,1760029834454,-500.0,0.00016438,2]
[390354513,1760029834463,-500.0,0.00016438,2]
[390354515,1760029834472,-500.0,0.00016438,2]
[390354517,1760029834481,-500.0,0.00016438,2]
[390354519,1760029834490,-500.0,0.00016438,2]
[390354521,1760029834500,-533.32,0.00016438,2]
[390354523,1760029834510,-3901.56,0.00016438,2]
[390354525,1760029834519,-286.31009453,0.00016438,2]
[390354527,1760029834528,-500.0,0.00016438,2]
[390354529,1760029834537,-500.0,0.00016438,2]
[390354531,1760029834547,-500.0,0.00016438,2]
[390354533,1760029834556,-500.0,0.00016438,2]
[390354535,1760029834566,-819.38,0.00016438,2]
[390354537,1760029834575,-706.6,0.00016438,2]
[390354539,1760029834584,-500.0,0.00016438,2]
[390354541,1760029834593,-500.0,0.00016438,2]
[390354543,1760029834603,-796.33,0.00016438,2]
[390354545,1760029834612,-500.0,0.00016438,2]
[390354547,1760029834621,-894.65,0.00016438,2]
[390354549,1760029834631,-1362.12,0.00016438,2]
[390354551,1760029834640,-2326.23,0.00016438,2]
[390354553,1760029834649,-500.0,0.00016438,2]
[390354555,1760029834659,-966.89,0.00016438,2]
[390354557,1760029834669,-500.0,0.00016438,2]
[390354559,1760029834679,-500.0,0.00016438,2]
[390354561,1760029834688,-500.0,0.00016438,2]
[390354563,1760029834697,-748.66,0.00016438,2]
[390354565,1760029834707,-500.0,0.00016438,2]
[390354567,1760029834716,-300.22397181,0.00016438,2]
[390354569,1760029834725,-500.0,0.00016438,2]
[390354571,1760029834734,-500.0,0.00016438,2]
[390354573,1760029834743,-500.0,0.00016438,2]
[390354575,1760029834753,-500.0,0.00016438,2]
[390354577,1760029834763,-861.44,0.00016438,2]
[390354579,1760029834772,-500.0,0.00016438,2]
[390354581,1760029834781,-500.0,0.00016438,2]
[390354583,1760029834791,-1703.0,0.00016438,2]
[390354585,1760029834802,-500.0,0.00016438,2]
[390354587,1760029834811,-432.33326268,0.00016438,2]
[390354589,1760029834821,-500.0,0.00016438,2]
[390354591,1760029834831,-646.16,0.00016438,2]
[390354594,1760029834840,-810.31,0.00016438,2]
[390354596,1760029834850,-500.0,0.00016438,2]
[390354598,1760029834860,-500.0,0.00016438,2]
[390354600,1760029834869,-500.0,0.00016438,2]
[390354602,1760029834879,-500.0,0.00016438,2]
[390354618,1760029835052,-500.0,0.00016438,2]
[390354620,1760029835062,-500.0,0.00016438,2]
[390354622,1760029835071,-726.29,0.00016438,2]
[390354624,1760029835081,-1185.98,0.00016438,2]
[390354626,1760029835091,-2346.65,0.00016438,2]
[390354627,1760029835101,-1009.79,0.00016438,2]
[390354629,1760029835110,-500.0,0.00016438,2]
[390354631,1760029835119,-500.0,0.00016438,2]
[390354635,1760029835140,-2765.79,0.00016438,2]
[390354637,1760029835152,-500.0,0.00016438,2]
[390354639,1760029835165,-500.0,0.00016438,2]
[390354641,1760029835176,-1042.8,0.00016438,2]
[390354643,1760029835186,-500.0,0.00016438,2]
[390354645,1760029835198,-965.68,0.00016438,2]
[390354648,1760029835209,-500.0,0.00016438,2]
[390354650,1760029835219,-785.74,0.00016438,2]
[390354652,1760029835232,-1119.27,0.00016438,2]
[390354654,1760029835242,-724.17,0.00016438,2]
[390354656,1760029835253,-500.0,0.00016438,2]
[390354658,1760029835263,-500.0,0.00016438,2]
[390354660,1760029835274,-506.89,0.00016438,2]
[390354662,1760029835284,-500.0,0.00016438,2]
[390354664,1760029835294,-500.0,0.00016438,2]
[390354666,1760029835305,-2007.7,0.00016438,2]
[390354667,1760029835315,-500.0,0.00016438,2]
[390354668,1760029835325,-500.0,0.00016438,2]
[390354669,1760029835336,-500.0,0.00016438,2]
[390354670,1760029835346,-1157.15,0.00016438,2]
[390354671,1760029835356,-2603.5,0.00016438,2]
[390354672,1760029835366,-2327.19,0.00016438,2]
[390354673,1760029835377,-426.17949102,0.00016637,2]
[390354674,1760029835387,-3438.96,0.00016711,2]
[390354675,1760029835398,-500.0,0.00016711,2]
[390354676,1760029835408,-500.0,0.00016711,2]
[390354677,1760029835420,-1027.92,0.00016711,2]
[390354678,1760029835430,-5484.79,0.00016711,2]
[390354679,1760029835440,-6601.27,0.00016711,2]
[390354680,1760029835450,-1156.55,0.00016711,2]
[390354681,1760029835460,-2285.38,0.00016711,2]
[390354682,1760029835470,-2131.2,0.00016711,2]
[390354684,1760029835480,-500.0,0.00016711,2]
[390354685,1760029835490,-618.75,0.00016711,2]
[390354686,1760029835499,-500.0,0.00016712,2]
[390354687,1760029835509,-503.03,0.00016712,2]
[390354688,1760029835518,-500.0,0.00016712,2]
[390354690,1760029835528,-500.0,0.00016712,2]
[390354692,1760029835539,-500.0,0.00016712,2]
[390354695,1760029835548,-500.0,0.00016712,2]
[390354696,1760029835559,-500.0,0.00016712,2]
[390354699,1760029835569,-500.0,0.00016712,2]
[390354701,1760029835579,-500.0,0.00016712,2]
[390354703,1760029835589,-500.0,0.00016712,2]
[390354705,1760029835599,-581.36,0.00016712,2]
[390354707,1760029835608,-500.0,0.00016712,2]
[390354708,1760029835618,-500.0,0.00016712,2]
[390354710,1760029835627,-500.0,0.00016712,2]
[390354713,1760029835638,-500.0,0.00016712,2]
[390354714,1760029835649,-500.0,0.00016712,2]
[390354716,1760029835658,-500.0,0.00016712,2]